[Event "Titled Tuesday Blitz August 23 Early 2022"]
[White "Namitbir Singh Walia"]
[Black "Gan-Od, Sereenen"]
[WhiteFideId "35071068"]
[BlackFideId "4901304"]
[WhiteElo "1664"]
[BlackElo "2316"]
[Result "0-1"]
[Round "05"]
[TimeControl "180+1"]
[Date "2022.08.23"]
[WhiteClock "0:00:12"]
[BlackClock "0:00:23"]

1. e4 {[%clk 0:03:00]}  c5 {[%clk 0:02:59]} 2. d4 {[%clk 0:03:00]}  cxd4 {[%clk 0:02:58]} 3. c3 {[%clk 0:03:00]}  dxc3 {[%clk 0:02:55]} 4. Nxc3 {[%clk 0:03:01]}  Nc6 {[%clk 0:02:53]} 5. Nf3 {[%clk 0:03:01]}  Nf6 {[%clk 0:02:50]} 6. Bc4 {[%clk 0:03:02]}  e6 {[%clk 0:02:48]} 7. e5 {[%clk 0:02:45]}  Ng4 {[%clk 0:02:45]} 8. Bf4 {[%clk 0:02:45]}  Qa5 {[%clk 0:02:34]} 9. Qe2 {[%clk 0:02:42]}  f6 {[%clk 0:02:29]} 10. exf6 {[%clk 0:02:34]}  Nxf6 {[%clk 0:02:29]} 11. O-O {[%clk 0:02:31]}  Be7 {[%clk 0:02:27]} 12. Rad1 {[%clk 0:01:42]}  O-O {[%clk 0:02:24]} 13. Rfe1 {[%clk 0:01:38]}  a6 {[%clk 0:02:20]} 14. Bd6 {[%clk 0:01:30]}  Bxd6 {[%clk 0:02:17]} 15. Rxd6 {[%clk 0:01:31]}  Qc7 {[%clk 0:02:16]} 16. Red1 {[%clk 0:01:28]}  Ne7 {[%clk 0:01:50]} 17. Ne4 {[%clk 0:01:04]}  Nxe4 {[%clk 0:01:37]} 18. Qxe4 {[%clk 0:01:04]}  Qc5 {[%clk 0:01:38]} 19. b4 {[%clk 0:00:50]}  Qh5 {[%clk 0:01:32]} 20. Bb3 {[%clk 0:00:22]}  Nf5 {[%clk 0:01:28]} 21. R6d3 {[%clk 0:00:19]}  d5 {[%clk 0:01:25]} 22. Qe5 {[%clk 0:00:19]}  Qh6 {[%clk 0:01:19]} 23. Nd4 {[%clk 0:00:18]}  Qf6 {[%clk 0:01:14]} 24. Qf4 {[%clk 0:00:16]}  Nxd4 {[%clk 0:01:10]} 25. Qxd4 {[%clk 0:00:16]}  Qxd4 {[%clk 0:01:06]} 26. Rxd4 {[%clk 0:00:17]}  Bd7 {[%clk 0:01:07]} 27. f4 {[%clk 0:00:16]}  g6 {[%clk 0:01:04]} 28. g3 {[%clk 0:00:16]}  Rac8 {[%clk 0:01:02]} 29. Kf2 {[%clk 0:00:17]}  Kf7 {[%clk 0:00:59]} 30. Re1 {[%clk 0:00:18]}  Rc3 {[%clk 0:00:53]} 31. Rd2 {[%clk 0:00:18]}  Rfc8 {[%clk 0:00:47]} 32. Re3 {[%clk 0:00:18]}  Kf6 {[%clk 0:00:43]} 33. Rdd3 {[%clk 0:00:15]}  Rxd3 {[%clk 0:00:40]} 34. Rxd3 {[%clk 0:00:16]}  Bb5 {[%clk 0:00:40]} 35. Rd2 {[%clk 0:00:15]}  Bc4 {[%clk 0:00:37]} 36. Rc2 {[%clk 0:00:15]}  b5 {[%clk 0:00:35]} 37. Ke3 {[%clk 0:00:16]}  e5 {[%clk 0:00:32]} 38. fxe5+ {[%clk 0:00:14]}  Kxe5 {[%clk 0:00:33]} 39. Rf2 {[%clk 0:00:07]}  Bxb3 {[%clk 0:00:30]} 40. axb3 {[%clk 0:00:08]}  Rc3+ {[%clk 0:00:31]} 41. Kd2 {[%clk 0:00:08]}  Rxb3 {[%clk 0:00:31]} 42. Rf7 {[%clk 0:00:09]}  Rb2+ {[%clk 0:00:31]} 43. Kd3 {[%clk 0:00:08]}  Rxb4 {[%clk 0:00:27]} 44. Re7+ {[%clk 0:00:08]}  Kd6 {[%clk 0:00:27]} 45. Rxh7 {[%clk 0:00:09]}  a5 {[%clk 0:00:26]} 46. Ra7 {[%clk 0:00:10]}  a4 {[%clk 0:00:23]} 47. Ra6+ {[%clk 0:00:11]}  Kc5 {[%clk 0:00:24]} 48. Rxg6 {[%clk 0:00:11]}  Rb2 {[%clk 0:00:25]} 49. Ra6 {[%clk 0:00:11]}  Rxh2 {[%clk 0:00:24]} 50. g4 {[%clk 0:00:12]}  Rg2 {[%clk 0:00:24]} 51. Rf6 {[%clk 0:00:12]}  Rxg4 {[%clk 0:00:23]} 0-1


[Site "https://www.chess.com"]

[Event "Titled Tuesday Blitz August 23 Early 2022"]
[White "Papasimakopoulos, Alexandros"]
[Black "Dobrikov, Marco"]
[WhiteFideId "4244125"]
[BlackFideId "12950378"]
[WhiteElo "2357"]
[BlackElo "2101"]
[Result "1-0"]
[Round "05"]
[TimeControl "180+1"]
[Date "2022.08.23"]
[WhiteClock "0:00:11"]
[BlackClock "0:00:16"]

1. d4 {[%clk 0:03:00]}  Nf6 {[%clk 0:02:59]} 2. c4 {[%clk 0:03:00]}  g6 {[%clk 0:02:59]} 3. Nc3 {[%clk 0:02:57]}  Bg7 {[%clk 0:03:00]} 4. Bg5 {[%clk 0:02:55]}  O-O {[%clk 0:02:59]} 5. e3 {[%clk 0:02:55]}  d6 {[%clk 0:02:55]} 6. Nf3 {[%clk 0:02:54]}  Nbd7 {[%clk 0:02:52]} 7. Be2 {[%clk 0:02:54]}  c6 {[%clk 0:02:52]} 8. O-O {[%clk 0:02:53]}  e5 {[%clk 0:02:51]} 9. dxe5 {[%clk 0:02:53]}  dxe5 {[%clk 0:02:52]} 10. Qc2 {[%clk 0:02:53]}  Qc7 {[%clk 0:02:51]} 11. Nd2 {[%clk 0:02:49]}  a5 {[%clk 0:02:45]} 12. a3 {[%clk 0:02:49]}  Re8 {[%clk 0:02:42]} 13. b4 {[%clk 0:02:48]}  axb4 {[%clk 0:02:41]} 14. axb4 {[%clk 0:02:49]}  Rxa1 {[%clk 0:02:42]} 15. Rxa1 {[%clk 0:02:50]}  Bf8 {[%clk 0:02:37]} 16. c5 {[%clk 0:02:45]}  b6 {[%clk 0:02:38]} 17. Nb3 {[%clk 0:02:42]}  bxc5 {[%clk 0:02:37]} 18. bxc5 {[%clk 0:02:37]}  Nd5 {[%clk 0:02:28]} 19. Ne4 {[%clk 0:02:22]}  f6 {[%clk 0:02:25]} 20. Bh4 {[%clk 0:02:19]}  Kg7 {[%clk 0:02:24]} 21. Bc4 {[%clk 0:02:10]}  Bb7 {[%clk 0:02:23]} 22. h3 {[%clk 0:01:52]}  Ra8 {[%clk 0:02:22]} 23. Rxa8 {[%clk 0:01:50]}  Bxa8 {[%clk 0:02:23]} 24. Qa2 {[%clk 0:01:48]}  Bb7 {[%clk 0:02:23]} 25. Na5 {[%clk 0:01:47]}  Ba8 {[%clk 0:02:20]} 26. Nb3 {[%clk 0:01:39]}  Bb7 {[%clk 0:02:20]} 27. Qa7 {[%clk 0:01:36]}  g5 {[%clk 0:02:13]} 28. Bg3 {[%clk 0:01:36]}  Qb8 {[%clk 0:01:58]} 29. Qa5 {[%clk 0:01:16]}  Be7 {[%clk 0:01:56]} 30. h4 {[%clk 0:01:09]}  h6 {[%clk 0:01:56]} 31. hxg5 {[%clk 0:01:10]}  hxg5 {[%clk 0:01:56]} 32. Nd6 {[%clk 0:01:07]}  Bxd6 {[%clk 0:01:56]} 33. cxd6 {[%clk 0:01:07]}  Qxd6 {[%clk 0:01:54]} 34. Qd2 {[%clk 0:01:00]}  Nc5 {[%clk 0:01:49]} 35. Qb2 {[%clk 0:00:54]}  Nxb3 {[%clk 0:01:46]} 36. Qxb3 {[%clk 0:00:53]}  Bc8 {[%clk 0:01:46]} 37. Qa2 {[%clk 0:00:45]}  Be6 {[%clk 0:01:47]} 38. Qa7+ {[%clk 0:00:44]}  Bf7 {[%clk 0:01:33]} 39. e4 {[%clk 0:00:29]}  Ne7 {[%clk 0:01:22]} 40. Bxf7 {[%clk 0:00:26]}  Kxf7 {[%clk 0:01:23]} 41. f3 {[%clk 0:00:26]}  Qd4+ {[%clk 0:01:14]} 42. Bf2 {[%clk 0:00:20]}  Qxa7 {[%clk 0:01:12]} 43. Bxa7 {[%clk 0:00:21]}  Ke6 {[%clk 0:01:11]} 44. Kf2 {[%clk 0:00:21]}  Kd6 {[%clk 0:01:07]} 45. Ke3 {[%clk 0:00:21]}  c5 {[%clk 0:01:08]} 46. Bb6 {[%clk 0:00:20]}  Nc6 {[%clk 0:01:07]} 47. Kd3 {[%clk 0:00:20]}  Nb8 {[%clk 0:00:55]} 48. Bd8 {[%clk 0:00:18]}  Nd7 {[%clk 0:00:55]} 49. Kc4 {[%clk 0:00:19]}  Kc6 {[%clk 0:00:56]} 50. Be7 {[%clk 0:00:18]}  Nb6+ {[%clk 0:00:56]} 51. Kc3 {[%clk 0:00:17]}  Nd7 {[%clk 0:00:56]} 52. Kd3 {[%clk 0:00:17]}  Kb5 {[%clk 0:00:55]} 53. Kc3 {[%clk 0:00:17]}  c4 {[%clk 0:00:56]} 54. g4 {[%clk 0:00:15]}  Kc6 {[%clk 0:00:31]} 55. Kb4 {[%clk 0:00:15]}  Kb6 {[%clk 0:00:27]} 56. Kxc4 {[%clk 0:00:13]}  Kc6 {[%clk 0:00:28]} 57. Kc3 {[%clk 0:00:13]}  Kb5 {[%clk 0:00:28]} 58. Kb3 {[%clk 0:00:13]}  Kc6 {[%clk 0:00:28]} 59. Kc4 {[%clk 0:00:14]}  Nb6+ {[%clk 0:00:29]} 60. Kb4 {[%clk 0:00:14]}  Nd7 {[%clk 0:00:29]} 61. Ka5 {[%clk 0:00:14]}  Nc5 {[%clk 0:00:18]} 62. Bxf6 {[%clk 0:00:13]}  Nd3 {[%clk 0:00:18]} 63. Bxg5 {[%clk 0:00:12]}  Kd6 {[%clk 0:00:18]} 64. Bd2 {[%clk 0:00:11]}  Nf2 {[%clk 0:00:17]} 65. Kb4 {[%clk 0:00:10]}  Nh3 {[%clk 0:00:15]} 66. Be3 {[%clk 0:00:11]}  Ke6 {[%clk 0:00:14]} 67. Kc5 {[%clk 0:00:10]}  Kf6 {[%clk 0:00:15]} 68. Kd5 {[%clk 0:00:10]}  Nf4+ {[%clk 0:00:15]} 69. Bxf4 {[%clk 0:00:10]}  exf4 {[%clk 0:00:16]} 70. e5+ {[%clk 0:00:11]} 1-0


[Site "https://www.chess.com"]

[Event "Titled Tuesday Blitz August 23 Early 2022"]
[White "Szpar, Milosz"]
[Black "Nasir, Zehn"]
[WhiteFideId "1184989"]
[BlackFideId "2613239"]
[WhiteElo "2422"]
[BlackElo "1993"]
[Result "1-0"]
[Round "05"]
[TimeControl "180+1"]
[Date "2022.08.23"]
[WhiteClock "0:01:48"]
[BlackClock "0:00:13"]

1. e4 {[%clk 0:03:00]}  c6 {[%clk 0:02:46]} 2. d4 {[%clk 0:03:00]}  d5 {[%clk 0:02:47]} 3. exd5 {[%clk 0:03:00]}  cxd5 {[%clk 0:02:44]} 4. Bd3 {[%clk 0:03:01]}  Nc6 {[%clk 0:02:40]} 5. c3 {[%clk 0:03:01]}  Qc7 {[%clk 0:02:39]} 6. h3 {[%clk 0:03:01]}  Nf6 {[%clk 0:02:35]} 7. Nf3 {[%clk 0:02:58]}  g6 {[%clk 0:02:30]} 8. O-O {[%clk 0:02:55]}  Bg7 {[%clk 0:02:31]} 9. Re1 {[%clk 0:02:54]}  O-O {[%clk 0:02:31]} 10. Bg5 {[%clk 0:02:44]}  Bf5 {[%clk 0:02:26]} 11. Bf1 {[%clk 0:02:40]}  Ne4 {[%clk 0:02:18]} 12. Be3 {[%clk 0:02:38]}  Rab8 {[%clk 0:02:13]} 13. a4 {[%clk 0:02:37]}  a6 {[%clk 0:02:11]} 14. Nbd2 {[%clk 0:02:35]}  b5 {[%clk 0:02:08]} 15. axb5 {[%clk 0:02:35]}  axb5 {[%clk 0:02:09]} 16. Nb3 {[%clk 0:02:30]}  b4 {[%clk 0:01:59]} 17. c4 {[%clk 0:02:27]}  dxc4 {[%clk 0:01:50]} 18. Bxc4 {[%clk 0:02:27]}  Rfd8 {[%clk 0:01:06]} 19. Rc1 {[%clk 0:02:24]}  Qd7 {[%clk 0:00:52]} 20. Qe2 {[%clk 0:02:22]}  Rbc8 {[%clk 0:00:47]} 21. Red1 {[%clk 0:02:21]}  Nd6 {[%clk 0:00:47]} 22. Ba6 {[%clk 0:02:19]}  Rc7 {[%clk 0:00:43]} 23. Nc5 {[%clk 0:02:19]}  Qe8 {[%clk 0:00:42]} 24. d5 {[%clk 0:02:19]}  Nb8 {[%clk 0:00:41]} 25. Nd4 {[%clk 0:02:12]}  Nxa6 {[%clk 0:00:37]} 26. Nxa6 {[%clk 0:02:07]}  Rxc1 {[%clk 0:00:37]} 27. Rxc1 {[%clk 0:02:08]}  Bc8 {[%clk 0:00:35]} 28. Nxb4 {[%clk 0:02:04]}  Qa4 {[%clk 0:00:29]} 29. Ndc6 {[%clk 0:02:00]}  Re8 {[%clk 0:00:27]} 30. Bc5 {[%clk 0:01:59]}  Bd7 {[%clk 0:00:25]} 31. Nxe7+ {[%clk 0:01:57]}  Kh8 {[%clk 0:00:19]} 32. Bxd6 {[%clk 0:01:57]}  Qb3 {[%clk 0:00:16]} 33. Nbc6 {[%clk 0:01:52]}  Bxb2 {[%clk 0:00:13]} 34. Be5+ {[%clk 0:01:48]}  f6 {[%clk 0:00:13]} 35. Bxb2 {[%clk 0:01:48]} 1-0


[Site "https://www.chess.com"]

[Event "Titled Tuesday Blitz August 23 Early 2022"]
[White "Adla, Diego"]
[Black "Kadric, Denis"]
[WhiteFideId "100072"]
[BlackFideId "14403803"]
[WhiteElo "2377"]
[BlackElo "2657"]
[Result "1-0"]
[Round "06"]
[TimeControl "180+1"]
[Date "2022.08.23"]
[WhiteClock "0:01:51"]
[BlackClock "0:01:59"]

1. Nf3 {[%clk 0:03:00]}  d6 {[%clk 0:03:00]} 2. d4 {[%clk 0:02:59]}  g6 {[%clk 0:03:00]} 3. b3 {[%clk 0:02:56]}  Bg7 {[%clk 0:03:00]} 4. Bb2 {[%clk 0:02:55]}  c5 {[%clk 0:03:00]} 5. c4 {[%clk 0:02:50]}  Nc6 {[%clk 0:02:59]} 6. e3 {[%clk 0:02:47]}  Bg4 {[%clk 0:02:56]} 7. Be2 {[%clk 0:02:45]}  Nh6 {[%clk 0:02:48]} 8. O-O {[%clk 0:02:40]}  O-O {[%clk 0:02:48]} 9. Nbd2 {[%clk 0:02:31]}  cxd4 {[%clk 0:02:36]} 10. Nxd4 {[%clk 0:02:27]}  Bxe2 {[%clk 0:02:31]} 11. Qxe2 {[%clk 0:02:28]}  Nxd4 {[%clk 0:02:30]} 12. Bxd4 {[%clk 0:02:23]}  Bxd4 {[%clk 0:02:30]} 13. exd4 {[%clk 0:02:24]}  d5 {[%clk 0:02:31]} 14. c5 {[%clk 0:02:13]}  Nf5 {[%clk 0:02:31]} 15. Nf3 {[%clk 0:02:12]}  e6 {[%clk 0:02:24]} 16. b4 {[%clk 0:02:11]}  Rc8 {[%clk 0:02:21]} 17. Rfc1 {[%clk 0:02:06]}  a6 {[%clk 0:02:22]} 18. a4 {[%clk 0:02:06]}  Qf6 {[%clk 0:02:22]} 19. Qd3 {[%clk 0:02:04]}  h5 {[%clk 0:02:22]} 20. b5 {[%clk 0:02:03]}  g5 {[%clk 0:02:06]} 21. Ne5 {[%clk 0:01:58]}  Rc7 {[%clk 0:01:59]} 22. b6 {[%clk 0:01:55]}  Re7 {[%clk 0:02:00]} 23. c6 {[%clk 0:01:53]}  bxc6 {[%clk 0:02:00]} 24. Nxc6 {[%clk 0:01:52]}  Rb7 {[%clk 0:01:59]} 25. Qxa6 {[%clk 0:01:51]} 1-0


[Site "https://www.chess.com"]

[Event "Titled Tuesday Blitz August 23 Early 2022"]
[White "Bachmann, Axel"]
[Black "Samadov, Read"]
[WhiteFideId "3700488"]
[BlackFideId "13417444"]
[WhiteElo "2595"]
[BlackElo "2084"]
[Result "1-0"]
[Round "06"]
[TimeControl "180+1"]
[Date "2022.08.23"]
[WhiteClock "0:00:07"]
[BlackClock "0:00:03"]

1. Nf3 {[%clk 0:02:59]}  Nf6 {[%clk 0:02:59]} 2. c4 {[%clk 0:02:59]}  e6 {[%clk 0:02:59]} 3. b3 {[%clk 0:02:56]}  d5 {[%clk 0:02:58]} 4. Bb2 {[%clk 0:02:56]}  c5 {[%clk 0:02:58]} 5. e3 {[%clk 0:02:56]}  Nc6 {[%clk 0:02:58]} 6. cxd5 {[%clk 0:02:56]}  exd5 {[%clk 0:02:59]} 7. Bb5 {[%clk 0:02:57]}  Bd6 {[%clk 0:02:58]} 8. O-O {[%clk 0:02:57]}  O-O {[%clk 0:02:57]} 9. d4 {[%clk 0:02:57]}  cxd4 {[%clk 0:02:56]} 10. Nxd4 {[%clk 0:02:57]}  Bd7 {[%clk 0:02:55]} 11. Nf3 {[%clk 0:02:55]}  a6 {[%clk 0:02:45]} 12. Be2 {[%clk 0:02:54]}  Re8 {[%clk 0:02:39]} 13. Nc3 {[%clk 0:02:53]}  Be6 {[%clk 0:02:32]} 14. Rc1 {[%clk 0:02:44]}  Rc8 {[%clk 0:02:32]} 15. h3 {[%clk 0:02:42]}  Bb8 {[%clk 0:02:31]} 16. Bd3 {[%clk 0:02:40]}  h6 {[%clk 0:02:29]} 17. Ne2 {[%clk 0:02:39]}  Ne4 {[%clk 0:02:23]} 18. Nf4 {[%clk 0:02:37]}  Bxf4 {[%clk 0:02:22]} 19. exf4 {[%clk 0:02:37]}  Bf5 {[%clk 0:02:12]} 20. Bb1 {[%clk 0:02:34]}  Qd7 {[%clk 0:02:06]} 21. Nd4 {[%clk 0:02:19]}  Nxd4 {[%clk 0:02:06]} 22. Qxd4 {[%clk 0:02:20]}  Nf6 {[%clk 0:02:01]} 23. Rxc8 {[%clk 0:02:02]}  Rxc8 {[%clk 0:02:01]} 24. Bxf5 {[%clk 0:01:59]}  Qxf5 {[%clk 0:02:01]} 25. Qb6 {[%clk 0:02:00]}  Qxf4 {[%clk 0:01:33]} 26. Qxb7 {[%clk 0:01:45]}  Rc2 {[%clk 0:01:31]} 27. Bxf6 {[%clk 0:01:36]}  Qxf6 {[%clk 0:01:32]} 28. a4 {[%clk 0:01:28]}  Qd6 {[%clk 0:01:25]} 29. Rd1 {[%clk 0:01:21]}  Qf4 {[%clk 0:01:08]} 30. Qxd5 {[%clk 0:01:06]}  Qxf2+ {[%clk 0:01:07]} 31. Kh1 {[%clk 0:01:07]}  Rb2 {[%clk 0:00:58]} 32. Qe4 {[%clk 0:00:47]}  g6 {[%clk 0:00:47]} 33. Rd3 {[%clk 0:00:26]}  Rb1+ {[%clk 0:00:38]} 34. Kh2 {[%clk 0:00:26]}  Qg1+ {[%clk 0:00:39]} 35. Kg3 {[%clk 0:00:26]}  Re1 {[%clk 0:00:29]} 36. Qf4 {[%clk 0:00:18]}  Rf1 {[%clk 0:00:19]} 37. Qe3 {[%clk 0:00:03]}  Qxe3+ {[%clk 0:00:11]} 38. Rxe3 {[%clk 0:00:04]}  Kg7 {[%clk 0:00:09]} 39. Rc3 {[%clk 0:00:01]}  g5 {[%clk 0:00:06]} 40. Rc6 {[%clk 0:00:01]}  Rb1 {[%clk 0:00:07]} 41. Rb6 {[%clk 0:00:02]}  f6 {[%clk 0:00:06]} 42. a5 {[%clk 0:00:02]}  Kg6 {[%clk 0:00:06]} 43. Kf3 {[%clk 0:00:02]}  h5 {[%clk 0:00:07]} 44. b4 {[%clk 0:00:02]}  Kf5 {[%clk 0:00:05]} 45. Ke3 {[%clk 0:00:02]}  h4 {[%clk 0:00:04]} 46. Kd4 {[%clk 0:00:03]}  Rb2 {[%clk 0:00:04]} 47. Kc5 {[%clk 0:00:03]}  Rxg2 {[%clk 0:00:04]} 48. Rxa6 {[%clk 0:00:04]}  g4 {[%clk 0:00:03]} 49. hxg4+ {[%clk 0:00:05]}  Rxg4 {[%clk 0:00:03]} 50. Ra8 {[%clk 0:00:05]}  Rg5 {[%clk 0:00:02]} 51. Rh8 {[%clk 0:00:05]}  Kg4+ {[%clk 0:00:02]} 52. Kb6 {[%clk 0:00:06]}  h3 {[%clk 0:00:03]} 53. a6 {[%clk 0:00:06]}  Rh5 {[%clk 0:00:03]} 54. Rxh5 {[%clk 0:00:06]}  Kxh5 {[%clk 0:00:03]} 55. a7 {[%clk 0:00:07]} 1-0


[Site "https://www.chess.com"]

[Event "Titled Tuesday Blitz August 23 Early 2022"]
[White "Beerdsen, Thomas"]
[Black "Subelj, Jan"]
[WhiteFideId "1030108"]
[BlackFideId "14618583"]
[WhiteElo "2567"]
[BlackElo "2331"]
[Result "1-0"]
[Round "06"]
[TimeControl "180+1"]
[Date "2022.08.23"]
[WhiteClock "0:00:31"]
[BlackClock "0:00:09"]

1. e4 {[%clk 0:03:00]}  c5 {[%clk 0:02:59]} 2. Nf3 {[%clk 0:03:01]}  Nc6 {[%clk 0:02:59]} 3. d4 {[%clk 0:03:01]}  cxd4 {[%clk 0:02:57]} 4. Nxd4 {[%clk 0:03:02]}  Nf6 {[%clk 0:02:57]} 5. Nc3 {[%clk 0:03:02]}  h5 {[%clk 0:02:56]} 6. Nb3 {[%clk 0:02:58]}  d6 {[%clk 0:02:43]} 7. Bg5 {[%clk 0:02:55]}  e6 {[%clk 0:02:43]} 8. Qd2 {[%clk 0:02:55]}  Be7 {[%clk 0:02:42]} 9. O-O-O {[%clk 0:02:55]}  a6 {[%clk 0:02:42]} 10. Kb1 {[%clk 0:02:52]}  b5 {[%clk 0:02:42]} 11. a3 {[%clk 0:02:48]}  Bd7 {[%clk 0:02:36]} 12. f4 {[%clk 0:02:46]}  Qc7 {[%clk 0:02:34]} 13. Be2 {[%clk 0:02:43]}  b4 {[%clk 0:01:59]} 14. axb4 {[%clk 0:02:41]}  Nxb4 {[%clk 0:02:00]} 15. Bf3 {[%clk 0:02:37]}  Rb8 {[%clk 0:01:59]} 16. e5 {[%clk 0:02:37]}  dxe5 {[%clk 0:01:56]} 17. fxe5 {[%clk 0:02:36]}  Nfd5 {[%clk 0:01:46]} 18. Bxd5 {[%clk 0:02:31]}  exd5 {[%clk 0:01:36]} 19. Bxe7 {[%clk 0:02:29]}  Kxe7 {[%clk 0:01:37]} 20. Qxd5 {[%clk 0:02:13]}  Nxd5 {[%clk 0:01:38]} 21. Nxd5+ {[%clk 0:02:14]}  Kd8 {[%clk 0:01:33]} 22. Nxc7 {[%clk 0:02:15]}  Kxc7 {[%clk 0:01:34]} 23. Nc5 {[%clk 0:02:16]}  Bc8 {[%clk 0:01:29]} 24. Rhf1 {[%clk 0:02:15]}  Rf8 {[%clk 0:01:21]} 25. Rd6 {[%clk 0:02:11]}  Rb5 {[%clk 0:01:20]} 26. Nxa6+ {[%clk 0:02:11]}  Bxa6 {[%clk 0:01:17]} 27. Rxa6 {[%clk 0:02:12]}  Rxe5 {[%clk 0:01:14]} 28. Ra7+ {[%clk 0:02:13]}  Kb6 {[%clk 0:01:09]} 29. Rfxf7 {[%clk 0:02:11]}  Re1+ {[%clk 0:01:06]} 30. Ka2 {[%clk 0:02:11]}  Rxf7 {[%clk 0:01:04]} 31. Rxf7 {[%clk 0:02:12]}  Re2 {[%clk 0:01:04]} 32. Kb3 {[%clk 0:02:00]}  Rxg2 {[%clk 0:01:04]} 33. h4 {[%clk 0:02:00]}  Kc6 {[%clk 0:01:00]} 34. c4 {[%clk 0:01:58]}  Rg4 {[%clk 0:00:58]} 35. Kb4 {[%clk 0:01:56]}  Kd6 {[%clk 0:00:58]} 36. Kb5 {[%clk 0:01:53]}  Ke6 {[%clk 0:00:57]} 37. Ra7 {[%clk 0:01:52]}  g6 {[%clk 0:00:57]} 38. c5 {[%clk 0:01:46]}  Rxh4 {[%clk 0:00:56]} 39. c6 {[%clk 0:01:45]}  Rh2 {[%clk 0:00:54]} 40. b4 {[%clk 0:01:43]}  Rc2 {[%clk 0:00:54]} 41. Ra8 {[%clk 0:01:18]}  h4 {[%clk 0:00:48]} 42. Rh8 {[%clk 0:01:17]}  Kd6 {[%clk 0:00:37]} 43. Rh6 {[%clk 0:01:13]}  h3 {[%clk 0:00:30]} 44. Rxg6+ {[%clk 0:01:14]}  Kc7 {[%clk 0:00:30]} 45. Rg7+ {[%clk 0:01:13]}  Kd6 {[%clk 0:00:31]} 46. Rh7 {[%clk 0:01:06]}  h2 {[%clk 0:00:29]} 47. Rh8 {[%clk 0:00:38]}  Kc7 {[%clk 0:00:24]} 48. Rh6 {[%clk 0:00:32]}  Kd8 {[%clk 0:00:11]} 49. Kb6 {[%clk 0:00:30]}  Ke7 {[%clk 0:00:11]} 50. b5 {[%clk 0:00:31]}  Kd8 {[%clk 0:00:10]} 51. Kb7 {[%clk 0:00:30]}  Ke7 {[%clk 0:00:09]} 52. b6 {[%clk 0:00:30]}  Kd8 {[%clk 0:00:08]} 53. c7+ {[%clk 0:00:31]}  Kd7 {[%clk 0:00:09]} 54. Rxh2 {[%clk 0:00:31]} 1-0


[Site "https://www.chess.com"]

[Event "Titled Tuesday Blitz August 23 Early 2022"]
[White "Bryakin, Mikhail"]
[Black "Malek, Jan"]
[WhiteFideId "4165314"]
[BlackFideId "21864080"]
[WhiteElo "2353"]
[BlackElo "2143"]
[Result "1-0"]
[Round "06"]
[TimeControl "180+1"]
[Date "2022.08.23"]
[WhiteClock "0:01:08"]
[BlackClock "0:00:04"]

1. g3 {[%clk 0:02:57]}  d5 {[%clk 0:02:59]} 2. Bg2 {[%clk 0:02:55]}  Nf6 {[%clk 0:03:00]} 3. d3 {[%clk 0:02:53]}  c6 {[%clk 0:03:00]} 4. Nd2 {[%clk 0:02:53]}  e5 {[%clk 0:02:59]} 5. e4 {[%clk 0:02:54]}  Bd6 {[%clk 0:03:00]} 6. Ne2 {[%clk 0:02:51]}  O-O {[%clk 0:02:59]} 7. O-O {[%clk 0:02:52]}  Re8 {[%clk 0:02:57]} 8. exd5 {[%clk 0:02:51]}  cxd5 {[%clk 0:02:57]} 9. c4 {[%clk 0:02:52]}  Be6 {[%clk 0:02:45]} 10. Nc3 {[%clk 0:02:49]}  Bc5 {[%clk 0:02:40]} 11. a3 {[%clk 0:02:44]}  Nc6 {[%clk 0:02:39]} 12. b4 {[%clk 0:02:41]}  Bd4 {[%clk 0:02:37]} 13. Bb2 {[%clk 0:02:41]}  dxc4 {[%clk 0:02:17]} 14. dxc4 {[%clk 0:02:38]}  Rc8 {[%clk 0:02:14]} 15. c5 {[%clk 0:02:32]}  Nd5 {[%clk 0:02:10]} 16. Rc1 {[%clk 0:02:32]}  Nxc3 {[%clk 0:02:04]} 17. Bxc3 {[%clk 0:02:33]}  Bd5 {[%clk 0:02:05]} 18. Ne4 {[%clk 0:02:29]}  Bxe4 {[%clk 0:01:43]} 19. Bxe4 {[%clk 0:02:30]}  Qf6 {[%clk 0:01:42]} 20. Bxc6 {[%clk 0:02:20]}  Rxc6 {[%clk 0:01:24]} 21. Bxd4 {[%clk 0:02:21]}  exd4 {[%clk 0:01:25]} 22. Qd3 {[%clk 0:02:21]}  Rce6 {[%clk 0:01:11]} 23. Rcd1 {[%clk 0:02:21]}  Rd8 {[%clk 0:01:11]} 24. Rfe1 {[%clk 0:02:20]}  b6 {[%clk 0:01:08]} 25. Rxe6 {[%clk 0:02:14]}  Qxe6 {[%clk 0:01:08]} 26. Rc1 {[%clk 0:02:15]}  bxc5 {[%clk 0:01:01]} 27. bxc5 {[%clk 0:02:16]}  Qc6 {[%clk 0:00:54]} 28. Rc4 {[%clk 0:02:15]}  Re8 {[%clk 0:00:34]} 29. f3 {[%clk 0:01:53]}  Rd8 {[%clk 0:00:29]} 30. Kg2 {[%clk 0:01:52]}  h6 {[%clk 0:00:27]} 31. Rxd4 {[%clk 0:01:50]}  Rb8 {[%clk 0:00:23]} 32. Rd8+ {[%clk 0:01:44]}  Rxd8 {[%clk 0:00:24]} 33. Qxd8+ {[%clk 0:01:45]}  Kh7 {[%clk 0:00:25]} 34. Qd3+ {[%clk 0:01:45]}  g6 {[%clk 0:00:20]} 35. Qc2 {[%clk 0:01:38]}  Kg7 {[%clk 0:00:20]} 36. a4 {[%clk 0:01:38]}  Kf6 {[%clk 0:00:20]} 37. a5 {[%clk 0:01:37]}  Ke5 {[%clk 0:00:20]} 38. Qc4 {[%clk 0:01:35]}  Qd5 {[%clk 0:00:17]} 39. Qe2+ {[%clk 0:01:30]}  Kd4 {[%clk 0:00:15]} 40. Qe7 {[%clk 0:01:24]}  Kc4 {[%clk 0:00:12]} 41. c6 {[%clk 0:01:21]}  Qxc6 {[%clk 0:00:11]} 42. Qxa7 {[%clk 0:01:21]}  Kb5 {[%clk 0:00:11]} 43. Qxf7 {[%clk 0:01:18]}  Kxa5 {[%clk 0:00:11]} 44. Qb3 {[%clk 0:01:17]}  Qf6 {[%clk 0:00:10]} 45. h4 {[%clk 0:01:16]}  g5 {[%clk 0:00:10]} 46. h5 {[%clk 0:01:16]}  g4 {[%clk 0:00:09]} 47. Qd5+ {[%clk 0:01:13]}  Kb4 {[%clk 0:00:08]} 48. Qe4+ {[%clk 0:01:13]}  Kc5 {[%clk 0:00:07]} 49. Qxg4 {[%clk 0:01:14]}  Qf8 {[%clk 0:00:05]} 50. Qe4 {[%clk 0:01:12]}  Kb6 {[%clk 0:00:04]} 51. g4 {[%clk 0:01:10]}  Kc7 {[%clk 0:00:05]} 52. Qd5 {[%clk 0:01:10]}  Qf4 {[%clk 0:00:04]} 53. Qe4 {[%clk 0:01:07]}  Qd2+ {[%clk 0:00:04]} 54. Kg3 {[%clk 0:01:08]}  Kd6 {[%clk 0:00:04]} 55. Qf4+ {[%clk 0:01:08]} 1-0


[Site "https://www.chess.com"]